fUSD/lending_fUSD_20240119
["ID","MTS","AMOUNT","RATE_DAILY","PERIOD"]
[312124284,1705650844270,155.0,0.00021364,2]
[312124285,1705650854453,543.8078107,0.00021364,2]
[312124286,1705650854964,293.98223601,0.00021364,2]
[312124287,1705650856285,235.79469252,0.00021364,2]
[312124288,1705650863057,378.14866377,0.00021364,2]
[312124289,1705650870983,3243.266597,0.00021364,2]
[312124290,1705650871004,2842.65497586,0.00021364,2]
[312124291,1705650884987,2157.34502414,0.00021364,2]
[312124292,1705650885006,3921.75384946,0.00021364,2]
[312124293,1705650889136,159.7,0.00021696,2]
[312124294,1705650895916,150.0,0.000219,2]
[312124295,1705650896618,768.54615054,0.00020977,2]
[312124296,1705650896644,2354.46580893,0.00020977,2]
[312124297,1705650898464,621.82710502,0.00021197,2]
[312124298,1705650900022,2023.70708605,0.00021418,2]
[312124299,1705650900041,451.12302256,0.00021418,2]
[312124300,1705650900180,284.18685088,0.00021364,2]
[312124301,1705650905433,731.05509507,0.00021417,2]
[312124302,1705650915430,156.16540912,0.00021196,2]
[312124303,1705650919431,733.91854952,0.00021,2]
[312124304,1705650922705,771.56,0.00021644,2]
[312124305,1705650927231,155.16714405,0.00021364,2]
[312124306,1705650929210,155.0,0.00021364,2]
[312124307,1705650934999,292.05499422,0.00021364,2]
[312124308,1705650938993,1269.76893458,0.00021,2]
[312124309,1705650939014,3922.4697595,0.00021,2]
[312124310,1705650943216,155.0,0.00021,2]
[312124311,1705650944446,621.82710502,0.00021196,2]
[312124312,1705650948463,300.70313548,0.00021,2]
[312124313,1705650948484,243.71228164,0.00021,2]
[312124314,1705650954431,155.0,0.00021,2]
[312124315,1705650955009,2553.55308947,0.00021,2]
[312124316,1705650955438,730.66371542,0.00021,2]
[312124317,1705650958969,1317.07091347,0.00021,2]
[312124318,1705650958988,3875.16778061,0.00021,2]
[312124319,1705650959235,305.36683588,0.00021,2]
[312124320,1705650966469,571.97367679,0.00021,2]
[312124321,1705650976425,155.0,0.00021,2]
[312124322,1705650992148,92.49170672,0.00019137,2]
[312124323,1705650992170,126.63829328,0.00019137,2]
[312124324,1705650992346,219.13,0.00021401,2]
[312124325,1705651021094,150.0,0.000219,2]
[312124326,1705651034048,353.81,0.00021018,2]
[312124327,1705651087797,157.07,0.00021404,2]
[312124328,1705651109117,197.45340343,0.00021859,4]
[312124329,1705651117823,543.92,0.00020982,2]
[312124330,1705651117972,543.92,0.00021147,2]
[312124331,1705651118196,543.92,0.00021313,2]
[312124332,1705651118394,543.92,0.00021479,2]
[312124333,1705651118785,543.92,0.00021644,2]
[312124334,1705651118988,543.92,0.0002181,2]
[312124335,1705651121663,151.0,0.00029008,120]
[312124336,1705651145090,288.65,0.000219,2]
[312124337,1705651155922,167.08,0.00021142,2]
[312124338,1705651164340,76.64830329,0.00021129,2]
[312124339,1705651164361,76.01169671,0.00021129,2]
[312124340,1705651164423,152.66,0.00021203,2]
[312124341,1705651165983,152.66,0.00021276,2]
[312124342,1705651166193,152.66,0.00021349,2]
[312124343,1705651166401,152.66,0.00021423,2]
[312124344,1705651166603,152.66,0.00021496,2]
[312124345,1705651166802,152.66,0.0002157,2]
[312124346,1705651166999,152.66,0.00021643,2]
[312124347,1705651167237,152.66,0.00021716,2]
[312124348,1705651167433,152.66,0.0002179,2]
[312124349,1705651167634,152.66,0.00021863,2]
[312124350,1705651175003,155.0,0.00021899,2]
[312124351,1705651179308,1983.49984593,0.00021461,2]
[312124352,1705651180513,696.90085499,0.00021899,2]
[312124353,1705651182257,418.21791161,0.00021899,2]
[312124357,1705651209440,143.76969076,0.00020979,2]
[312124358,1705651209466,48.00030924,0.00020979,2]
[312124362,1705651222291,213.724403,0.00021,2]
[312124363,1705651233766,205.0,0.00021213,2]
[312124364,1705651246813,1032.71118498,0.000219,2]
[312124365,1705651251798,1032.71118497,0.000219,2]
[312124366,1705651256976,1032.71118497,0.000219,2]
[312124367,1705651261798,1032.71118497,0.000219,2]
[312124368,1705651267292,402.43054787,0.000219,2]
[312124369,1705651267313,630.2806371,0.000219,2]
[312124370,1705651267652,156.82,0.000219,2]
[312124371,1705651268536,164.79,0.0001678,2]
[312124372,1705651288475,395.27225416,0.00021899,2]
[312124373,1705651293300,3652.83710874,0.00021882,2]
[312124374,1705651302471,395.27225416,0.00021762,2]
[312124377,1705651324523,408.11418219,0.00021762,2]
[312124378,1705651328246,11099.22,0.00020937,2]
[312124379,1705651342057,264.61067402,0.00021084,2]
[312124380,1705651373617,156.71,0.00021147,2]
[312124381,1705651378369,151.0,0.00029126,120]
[312124382,1705651404353,2420.63923727,0.0002088,7]
[312124383,1705651408373,166.12316999,0.00021718,2]
[312124384,1705651412882,166.12316996,0.00021751,2]
[312124385,1705651417880,166.12316996,0.00021785,2]
[312124386,1705651442574,617.24,0.00021644,2]
[312124387,1705651449162,2026.20930622,0.00021751,2]
[312124388,1705651454694,1812.06513757,0.0002085,2]
[312124389,1705651462501,622.17405158,0.00021069,2]
[312124390,1705651462825,1636.94816117,0.00021069,2]
[312124391,1705651482733,597.73727713,0.00021033,2]
[312124392,1705651500917,330.22,0.00020913,2]
[312124393,1705651535900,197.21,0.00018995,2]
[312124394,1705651536328,197.21,0.00021259,2]
[312124395,1705651589551,261.23,0.00020908,2]
[312124396,1705651612338,152.66,0.00021063,2]
[312124397,1705651612574,152.66,0.00021337,2]
[312124398,1705651628320,1000.0,0.00020903,2]
[312124400,1705651649496,500.0,0.000215,7]
[312124405,1705651656611,250.0,0.00021084,2]
[312124406,1705651657864,250.0,0.00021358,2]
[312124407,1705651662886,150.0,0.00021084,2]
[312124408,1705651670528,150.0,0.00021083,2]
[312124409,1705651680599,150.0,0.00021084,2]
[312124410,1705651760574,151.0,0.00029223,120]
[312124413,1705651829186,-1000.0,0.000216,7]
[312124439,1705651831498,-100.0,0.000216,7]
[312124441,1705651831507,-152.66,0.00021612,2]
[312124443,1705651831517,-250.0,0.00021632,2]
[312124445,1705651831526,-150.0,0.00021632,2]
[312124447,1705651831535,-150.0,0.00021632,2]
[312124448,1705651831545,-1700.0,0.000217,7]
[312124449,1705651831555,-150.0,0.0002175,2]
[312124450,1705651831565,-150.0,0.0002175,2]
[312124451,1705651831575,-483.93200268,0.00021751,2]
[312124452,1705651831587,-417.57973931,0.00021751,2]
[312124453,1705651831603,-373.90204875,0.00021751,2]
[312124454,1705651831615,-763.01283785,0.00021751,2]
[312124455,1705651831636,-721.06586441,0.00021751,2]
[312124456,1705651831647,-357.46371413,0.00021751,2]
[312124457,1705651831660,-882.04787802,0.00021751,2]
[312124458,1705651831669,-279.87649107,0.00021751,2]
[312124459,1705651831679,-1080.8472333,0.00021751,2]
[312124460,1705651831690,-2935.55824925,0.00021751,2]
[312124461,1705651831700,-155.0,0.00021751,2]
[312124462,1705651831709,-285.18214469,0.00021751,2]
[312124463,1705651831729,-324.78547045,0.00021751,2]
[312124464,1705651831738,-155.0,0.00021751,2]
[312124465,1705651831747,-354.48328882,0.000218,7]
[312124466,1705651831771,-1142.99816628,0.000218,7]
[312124467,1705651831803,-802.5185449,0.000218,7]
[312124468,1705651831812,-1786.08852235,0.00021809,2]
[312124537,1705651837522,-374.16160013,0.00021809,2]
[312124538,1705651837534,-424.0,0.00021809,2]
[312124539,1705651837644,-16548.92789165,0.00021809,2]
[312124540,1705651837653,-220.82773708,0.0002181,2]
[312124541,1705651837662,-3037.63612605,0.0002181,2]
[312124542,1705651837672,-523.50725087,0.0002181,2]
[312124543,1705651837680,-667.35199687,0.0002181,2]
[312124544,1705651837689,-2500.0,0.0002181,2]
[312124545,1705651837698,-499.99,0.0002181,2]
[312124546,1705651837707,-3352.2211,0.00021811,2]
[312124547,1705651837717,-10459.8876,0.00021811,2]
[312124548,1705651837726,-9999.99,0.00021811,2]
[312124549,1705651837735,-20772.51,0.00021811,2]
[312124550,1705651837744,-27748.0909,0.00021818,2]
[312124551,1705651837755,-166.12316996,0.00021818,2]
[312124552,1705651837766,-10020.65664243,0.0002185,2]
[312124553,1705651837775,-166.12316996,0.00021852,2]
[312124554,1705651837785,-523.50725087,0.00021853,2]
[312124555,1705651837793,-499.99,0.00021882,2]
[312124556,1705651837803,-6316.23,0.00021882,2]
[312124557,1705651837812,-1632.21,0.00021882,2]
[312124558,1705651837822,-2878.83569126,0.00021882,2]
[312124559,1705651837831,-166.12316996,0.00021885,2]
[312124560,1705651837841,-152.66,0.00021886,2]
[312124561,1705651837853,-330.22,0.00021892,2]
[312124562,1705651837862,-523.50725087,0.00021897,2]
[312124563,1705651837871,-2900.0,0.000219,7]
[312124564,1705651837881,-774.53338872,0.000219,2]
[312124565,1705651837890,-774.53338872,0.000219,2]
[312124566,1705651837899,-774.53338872,0.000219,2]
[312124567,1705651837909,-150.77564097,0.000219,2]
[312124568,1705651837919,-774.53338872,0.00021902,2]
[312124569,1705651837929,-715.51,0.00021904,2]
[312124570,1705651837939,-712.0,0.00021905,2]
[312124571,1705651837949,-733.61,0.00021905,2]
[312124572,1705651837958,-251.42916586,0.00021906,2]
[312124573,1705651837967,-737.14,0.00021907,2]
[312124574,1705651837977,-718.85,0.00021907,2]
[312124575,1705651837985,-714.58,0.00021909,2]
[312124576,1705651837996,-7166.33422623,0.0002191,2]
[312124577,1705651838005,-150.99,0.0002191,2]
[312124578,1705651838015,-3307.22,0.0002191,2]
[312124579,1705651838024,-1057229.43594011,0.0002191,2]
[312124580,1705651838033,-732.49,0.0002191,2]
[312124581,1705651838042,-726.35,0.0002191,2]
[312124582,1705651838050,-87740.3099543,0.00021911,2]
[312124583,1705651838060,-596.29,0.00021911,2]
[312124584,1705651838069,-52442.505,0.00021911,2]
[312124586,1705651838078,-774.53338872,0.00021911,2]
[312124587,1705651838087,-731.82,0.00021912,2]
[312124589,1705651838096,-712.26,0.00021913,2]
[312124591,1705651838104,-709.75,0.00021913,2]
[312124593,1705651838114,-732.81,0.00021913,2]
[312124595,1705651838123,-733.5,0.00021914,2]
[312124596,1705651838132,-10000.0,0.00021918,2]
[312124598,1705651838141,-1590.73,0.00021918,3]
[312124600,1705651838150,-11900.0,0.00021918,2]
[312124602,1705651838159,-250.0,0.00021918,2]
[312124604,1705651838168,-200.0,0.00021918,2]
[312124606,1705651838177,-166.12316996,0.00021918,2]
[312124607,1705651838185,-774.53338872,0.00021921,2]
[312124610,1705651838194,-774.53338872,0.0002193,2]
[312124613,1705651838203,-774.53338872,0.00021939,2]
[312124616,1705651838212,-523.50725087,0.0002194,2]
[312124618,1705651838221,-10020.65664236,0.00021945,2]
[312124620,1705651838230,-285.40909205,0.00021948,2]
[312124621,1705651838239,-774.53338872,0.00021948,2]
[312124623,1705651838248,-5000.0,0.0002195,2]
[312124625,1705651838257,-166.12316996,0.00021952,2]
[312124627,1705651838266,-774.53338872,0.00021957,2]
[312124629,1705651838275,-3037.63612599,0.00021966,2]
[312124631,1705651838286,-774.53338872,0.00021967,2]
[312124633,1705651838295,-155.43378467,0.0002197,2]
[312124634,1705651838304,-543.92,0.00021975,2]
[312124636,1705651838313,-774.53338872,0.00021976,2]
[312124638,1705651838322,-15578.6062,0.00021982,2]
[312124640,1705651838331,-5990.2209,0.00021982,2]
[312124642,1705651838340,-215.7438313,0.00021982,2]
[312124643,1705651838349,-638.6956182,0.00021983,2]
[312124645,1705651838359,-1237.7295708,0.00021983,2]
[312124647,1705651838368,-467.05248658,0.00021983,2]
[312124649,1705651838377,-523.50725087,0.00021983,2]
[312124651,1705651838386,-55555.0,0.00021984,2]
[312124652,1705651838395,-166.12316996,0.00021985,2]
[312124653,1705651838404,-774.53338872,0.00021985,2]
[312124654,1705651838413,-155.0,0.00022,2]
[312124655,1705651838421,-1042.12830598,0.00022,2]
[312124656,1705651838430,-2781.06469987,0.00022,2]
[312124657,1705651838440,-176.33,0.00022,2]
[312124658,1705651838449,-550.0,0.00022,3]
[312124659,1705651838458,-159.7,0.00022036,2]
[312124660,1705651838467,-10020.65664236,0.00022041,2]
[312124661,1705651838476,-150.77564097,0.00022072,2]
[312124662,1705651838487,-150.77564097,0.00022072,2]
[312124663,1705651838496,-232.90118502,0.0002208,2]
[312124665,1705651838506,-155.32990661,0.0002208,2]
[312124667,1705651838515,-270.52656236,0.0002208,2]
[312124670,1705651838525,-694.11215363,0.0002208,2]
[312124672,1705651838535,-392.76724573,0.00022081,2]
[312124674,1705651838544,-476.2108533,0.00022081,2]
[312124675,1705651838554,-164.78321963,0.00022081,2]
[312124678,1705651838568,-376.54658441,0.00022081,2]
[312124680,1705651838577,-471.20111656,0.00022081,2]
[312124681,1705651838586,-210.6814645,0.00022081,2]
[312124683,1705651838598,-255.74148968,0.00022081,2]
[312124684,1705651838607,-500.0,0.00022081,2]
[312124685,1705651838770,-250.0,0.00022081,2]
[312124686,1705651838780,-155.0,0.00022082,2]
[312124687,1705651838791,-21334.3975855,0.00022082,2]
[312124688,1705651838800,-103274.0,0.00022082,2]
[312124689,1705651838810,-3128674.7389789,0.00022082,3]
[312124690,1705651838820,-710.72,0.00022083,2]
[312124691,1705651838829,-505807.38821923,0.00022083,2]
[312124692,1705651838840,-2619.74608901,0.00022083,2]
[312124693,1705651838850,-4684.3832,0.00022085,2]
[312124694,1705651838859,-1000.0,0.00022085,2]
[312124695,1705651838869,-39797.5924,0.00022085,2]
[312124696,1705651838879,-100000.0,0.00022085,2]
[312124697,1705651838890,-863.2762,0.00022085,2]
[312124698,1705651838899,-136988.2629,0.00022085,2]
[312124699,1705651838908,-220.6299708,0.0002211,2]
[312124700,1705651838919,-3037.63612599,0.00022121,2]
[312124701,1705651838928,-10020.65664236,0.00022136,2]
[312124702,1705651838937,-543.92,0.00022141,2]
[312124703,1705651838946,-152.66,0.0002216,2]
[312124704,1705651838955,-150.0,0.0002218,2]
[312124705,1705651838964,-235.89308219,0.0002218,2]
[312124706,1705651838973,-10020.65664236,0.00022232,2]
[312124707,1705651838982,-3037.63612599,0.00022277,2]
[312124708,1705651838991,-150.61,0.0002229,2]
[312124709,1705651839000,-543.92,0.00022307,2]
[312124710,1705651839009,-10020.65664236,0.00022327,2]
[312124711,1705651839019,-159.7,0.00022377,2]
[312124712,1705651839028,-10020.65664236,0.00022423,2]
[312124713,1705651839037,-3037.63612599,0.00022433,2]
[312124714,1705651839046,-215.74383129,0.00022441,2]
[312124715,1705651839055,-638.69561818,0.00022442,2]
[312124716,1705651839064,-1237.72957079,0.00022442,2]
[312124717,1705651839073,-467.05248658,0.00022442,2]
[312124718,1705651839083,-617.24,0.00022445,2]
[312124719,1705651839092,-543.92,0.00022472,2]
[312124720,1705651839101,-362.36700236,0.000225,2]
[312124721,1705651839110,-6216.79888439,0.000225,2]
[312124722,1705651839119,-10020.65664236,0.00022518,2]
[312124723,1705651839130,-176.33,0.00022548,2]
[312124724,1705651839139,-3037.63612599,0.00022589,2]
[312124725,1705651839148,-500.0,0.000226,8]
[312124726,1705651839157,-10020.65664236,0.00022614,2]
[312124727,1705651839166,-500.0,0.00022629,2]
[312124728,1705651839175,-543.92,0.00022638,2]
[312124729,1705651839185,-500.0,0.000227,8]
[312124730,1705651839194,-10020.65664236,0.00022709,2]
[312124731,1705651839203,-159.7,0.00022717,2]
[312124732,1705651839212,-150.0,0.00022728,2]
[312124733,1705651839221,-3037.63612599,0.00022744,2]
[312124734,1705651839230,-160.0,0.00022766,2]
[312124735,1705651839239,-160.0,0.00022766,2]
[312124736,1705651839248,-500.0,0.000228,8]
[312124737,1705651839257,-543.92,0.00022804,2]
[312124738,1705651839268,-10020.65664236,0.00022805,2]
[312124739,1705651839279,-330.22,0.0002287,2]
[312124740,1705651839289,-3836.101,0.00022899,2]
[312124741,1705651839298,-156.9238,0.00022899,2]
[312124742,1705651839307,-414.0092,0.00022899,2]
[312124743,1705651839317,-154.57593043,0.000229,2]
[312124744,1705651839327,-10020.65664236,0.000229,2]
[312124745,1705651839337,-220.82773707,0.000229,2]
[312124746,1705651839347,-215.74383129,0.000229,2]
[312124747,1705651839356,-638.69561818,0.000229,2]
[312124748,1705651839366,-1237.72957079,0.000229,2]
[312124749,1705651839375,-467.05248658,0.000229,2]
[312124750,1705651839384,-16000.0,0.000229,2]
[312124751,1705651839393,-3037.63612599,0.000229,2]
[312124752,1705651839403,-500.0,0.000229,8]
[312124753,1705651839412,-157.78,0.00022962,2]
[312124754,1705651839421,-543.92,0.00022969,2]
[312124755,1705651839431,-67205.65454179,0.0002298,2]
[312124756,1705651839441,-150.0,0.00022983,2]
[312124757,1705651839450,-150.0,0.00022983,2]
[312124758,1705651839459,-1781.7498232,0.00022984,2]
[312124759,1705651839468,-1296.6016336,0.00022984,2]
[312124760,1705651839477,-811.453444,0.00022984,2]
[312124761,1705651839486,-326.3052544,0.00022984,2]
[312124762,1705651839495,-20411.8994666,0.00022984,2]
[312124763,1705651839504,-21834.7672,0.00022984,2]
[312124764,1705651839514,-23257.6349333,0.00022984,2]
[312124765,1705651839524,-24680.5026666,0.00022984,2]
[312124766,1705651839533,-20411.8994666,0.00022984,2]
[312124767,1705651839542,-21834.7672,0.00022984,2]
[312124768,1705651839553,-23257.6349333,0.00022984,2]
[312124769,1705651839566,-24680.5026666,0.00022984,2]
[312124770,1705651839575,-2771.6437079,0.00022984,2]
[312124771,1705651839584,-2668.4986096,0.00022984,2]
[312124772,1705651839595,-2565.3535113,0.00022984,2]
[312124773,1705651839605,-2462.2084129,0.00022984,2]
[312124774,1705651839614,-12956.4365821,0.00022984,2]
[312124775,1705651839623,-12474.2703781,0.00022984,2]
[312124776,1705651839632,-11992.1041742,0.00022984,2]
[312124777,1705651839642,-11509.9379702,0.00022984,2]
[312124778,1705651839652,-186.35252227,0.00022997,2]
[312124779,1705651839661,-194.66471001,0.00022997,2]
[312124780,1705651839670,-532.50248823,0.00022997,2]
[312124781,1705651839680,-400.25276388,0.00022997,2]
[312124782,1705651839689,-187.96504818,0.00022998,2]
[312124783,1705651839699,-214.25314506,0.00022998,2]
[312124784,1705651839708,-690.47,0.00022998,2]
[312124785,1705651839719,-1000.0,0.00022998,2]
[312124786,1705651839728,-1000.0,0.00022998,2]
[312124787,1705651839738,-1000.0,0.00022998,2]
[312124788,1705651839747,-1000.0,0.00022998,2]
[312124789,1705651839757,-1000.0,0.00022998,2]
[312124790,1705651839767,-1000.0,0.00022998,2]
[312124791,1705651839775,-1000.0,0.00022998,2]
[312124792,1705651839785,-1000.0,0.00022998,2]
[312124793,1705651839794,-1000.0,0.00022998,2]
[312124794,1705651839803,-1005.57,0.00022998,2]
[312124795,1705651839812,-160.0,0.00022998,2]
[312124796,1705651839821,-546.59727466,0.00022999,2]
[312124797,1705651839830,-150.0,0.00022999,2]
[312124798,1705651839839,-150.0,0.00022999,2]
[312124799,1705651839849,-150.0,0.00022999,2]
[312124800,1705651839858,-150.0,0.00022999,2]
[312124801,1705651839867,-150.0,0.00022999,2]
[312124802,1705651839877,-150.0,0.00022999,2]
[312124803,1705651839886,-150.0,0.00022999,2]
[312124804,1705651839895,-150.0,0.00022999,2]
[312124805,1705651839903,-150.0,0.00022999,2]
[312124806,1705651839912,-150.0,0.00022999,2]
[312124807,1705651839921,-150.0,0.00022999,2]
[312124808,1705651839930,-150.0,0.00022999,2]
[312124809,1705651839939,-150.0,0.00022999,2]
[312124810,1705651839948,-150.0,0.00022999,2]
[312124811,1705651839957,-150.0,0.00022999,2]
[312124812,1705651839966,-150.0,0.00022999,2]
[312124813,1705651839976,-150.0,0.00022999,2]
[312124814,1705651839985,-150.0,0.00022999,2]
[312124815,1705651839994,-150.0,0.00022999,2]
[312124816,1705651840004,-150.0,0.00022999,2]
[312124817,1705651840013,-150.0,0.00022999,2]
[312124818,1705651840024,-150.0,0.00022999,2]
[312124819,1705651840034,-150.0,0.00022999,2]
[312124820,1705651840044,-150.0,0.00022999,2]
[312124821,1705651840053,-150.0,0.00022999,2]
[312124822,1705651840063,-150.0,0.00022999,2]
[312124823,1705651840073,-150.0,0.00022999,2]
[312124824,1705651840083,-150.0,0.00022999,2]
[312124825,1705651840093,-151.0,0.00023,2]
[312124826,1705651840103,-11668.45992743,0.00023,2]
[312124827,1705651840113,-5848258.00422934,0.00023,2]
[312124828,1705651840128,-1005211.67796166,0.00023,2]
[312124829,1705651840139,-459041.53428746,0.00023,2]
[312124830,1705651840150,-1995.28251,0.00023,2]
[312124831,1705651840381,-26602.76086331,0.00023,2]
[312124832,1705651840392,-20726.86534335,0.00023,2]
[312124833,1705651840404,-858.53020705,0.00023,2]
[312124834,1705651840551,-10516.66649057,0.00023,2]
[312124835,1705651840565,-27485.29946968,0.00023,2]
[312124836,1705651841325,-343.63380356,0.00021853,2]
[312124837,1705651841494,-1016.55715359,0.00021853,2]
[312124839,1705651842466,-420.80904285,0.00021853,2]
[312124840,1705651842482,-494.54270903,0.00023,2]
[312124841,1705651842503,-1120.75474578,0.00023,2]
[312124842,1705651842559,-1920718.01222794,0.00023,2]
[312124843,1705651842625,-709.17,0.00023,2]
[312124844,1705651842693,-3862.24143467,0.00023,2]
[312124845,1705651842758,-1590.32321476,0.00023,2]
[312124846,1705651842776,-275.16935946,0.00023,2]
[312124847,1705651842795,-388.39049616,0.00023,2]
[312124848,1705651842821,-463.69833134,0.00023,2]
[312124849,1705651842866,-2037.31092658,0.00023,2]
[312124874,1705651845530,-187.61169004,0.00021983,2]
[312124875,1705651845540,-3529.64252331,0.00023,2]
[312124876,1705651845591,-2581.55187985,0.00023,2]
[312124877,1705651845646,-432.27653367,0.00023,2]
[312124878,1705651845713,-323.15518711,0.00023,2]
[312124879,1705651845726,-22620.97509184,0.00023,2]
[312124880,1705651845737,-35048.7527446,0.00023,2]
[312124886,1705651846719,-6135.55429192,0.00023,2]
[312124887,1705651846731,-659.879398,0.00023,2]
[312124888,1705651846743,-319.290005,0.00023,2]
[312124889,1705651846755,-621.7494999,0.00023,2]
[312124890,1705651846766,-5637.50685243,0.00023,2]
[312124891,1705651846777,-2031.00261675,0.00023,2]
[312124892,1705651846793,-997.6565351,0.00023,2]
[312124893,1705651846805,-1412.60118427,0.00023,2]
[312124894,1705651846817,-300.0,0.00023,2]
[312124895,1705651846828,-21366.49999998,0.00023,2]
[312124896,1705651846840,-342.01478654,0.00023,2]
[312124897,1705651846852,-404.04653892,0.00023,2]
[312124902,1705651954540,194.04,0.00018943,2]
[312124903,1705651954798,194.04,0.00021207,2]
[312124904,1705651983782,3195.74644902,0.00021207,2]
[312124905,1705652003771,3195.74644902,0.00021207,2]
[312124906,1705652021780,3195.74644902,0.00021207,2]
[312124907,1705652039808,798.73652236,0.00021207,2]
[312124908,1705652148759,167.92,0.00021262,2]
[312124909,1705652205648,151.0,0.00029262,120]
[312124910,1705652260230,980.71892281,0.00021231,2]
[312124911,1705652260253,8497.68107719,0.00021231,2]
[312124912,1705652284271,205.0,0.00021446,2]
[312124913,1705652323019,1138.0,0.00021376,2]
[312124914,1705652343630,158.68,0.00021153,2]
[312124930,1705652467329,174.63,0.00019344,2]
[312124934,1705652482043,323.2,0.00020891,2]
[312124935,1705652548549,151.0,0.00029356,120]
[312124936,1705652554165,176.33,0.00020982,2]
[312125003,1705652575256,165.15,0.00020886,2]
[312125004,1705652589990,-176.33,0.0002153,2]
[312125005,1705652590013,-174.63,0.00021608,2]
[312125006,1705652590035,-398.33371911,0.00021609,2]
[312125007,1705652590234,-552.94,0.00021644,2]
[312125008,1705652590258,-398.33371905,0.00021677,2]
[312125009,1705652590284,-150.0,0.00021708,2]
[312125010,1705652590308,-300.0,0.00021708,2]
[312125011,1705652590332,-2278.22709451,0.00021709,2]
[312125012,1705652590354,-863.2762,0.00021709,2]
[312125013,1705652590375,-39797.5924,0.00021709,2]
[312125014,1705652590396,-1000.0,0.00021709,2]
[312125015,1705652590417,-3836.101,0.00021709,2]
[312125016,1705652590442,-200.3161,0.00021709,2]
[312125017,1705652590462,-156.9238,0.00021709,2]
[312125018,1705652590483,-2026.5976,0.00021709,2]
[312125019,1705652590504,-414.0092,0.00021709,2]
[312125020,1705652590524,-747.89331272,0.00021709,2]
[312125021,1705652590545,-747.89331272,0.0002171,2]
[312125022,1705652590565,-200.0,0.00021715,2]
[312125023,1705652590587,-398.33371905,0.00021745,2]
[312125024,1705652590608,-499.99,0.00021745,2]
[312125025,1705652590631,-179.67,0.00021791,2]
[312125026,1705652590652,-19133.17801413,0.000218,2]
[312125027,1705652590672,-8798.41,0.000218,2]
[312125028,1705652590694,-155.64520713,0.00021807,2]
[312125029,1705652590716,-2619.74608901,0.00021808,2]
[312125030,1705652590745,-30417.37560421,0.00021808,2]
[312125031,1705652590766,-4148.41,0.00021808,2]
[312125032,1705652590787,-150.99,0.00021808,2]
[312125033,1705652590809,-186.35252227,0.00021809,2]
[312125034,1705652590831,-194.66471001,0.00021809,2]
[312125035,1705652591073,-203697.83667608,0.00021809,2]
[312125036,1705652591573,151.1,0.00021043,2]
[312125037,1705652591792,151.1,0.00021262,2]
[312125038,1705652591988,151.1,0.00021482,2]
[312125039,1705652610370,172.09,0.0002149,2]
[312125040,1705652633724,840.0,0.00020884,2]
[312125047,1705652935820,157.16,0.00019533,2]
[312125048,1705652953015,151.0,0.00029501,120]
[312125054,1705653031648,-442.35,0.00021644,2]
[312125055,1705653031659,-151.1,0.00021701,2]
[312125056,1705653031671,-516.50463406,0.00021708,2]
[312125057,1705653031683,-618.00536594,0.00021709,2]
[312125058,1705653031705,-737.98499997,0.00021709,2]
[312125059,1705653031819,-637.45834183,0.00021709,2]
[312125060,1705653031828,-1584.78162617,0.00021709,2]
[312125061,1705653031841,-341.68848075,0.00021709,2]
[312125062,1705653031875,-466.63503773,0.00021709,2]
[312125063,1705653031988,-6280.21285535,0.00021709,2]
[312125065,1705653031998,-2195.35276055,0.00021709,2]
[312125104,1705653038364,-134792.91013945,0.00021709,2]
[312125106,1705653038375,-157.16,0.00021797,2]